fUSD/lending_fUSD_20250216
["ID","MTS","AMOUNT","RATE_DAILY","PERIOD"]
[353304032,1739743875441,-858.87,0.00012027,2]
[353304033,1739743875450,-1165.86,0.00012027,2]
[353304034,1739743875460,-717.35,0.00012027,2]
[353304035,1739743875469,-500.0,0.00012027,2]
[353304036,1739743875479,-807.84,0.00012027,2]
[353304037,1739743875489,-500.0,0.00012027,2]
[353304038,1739743875499,-894.1,0.00012027,2]
[353304039,1739743875508,-1443.39,0.00012027,2]
[353304040,1739743875518,-652.28,0.00012027,2]
[353304041,1739743875528,-573.79,0.00012027,2]
[353304042,1739743875542,-500.0,0.00012027,2]
[353304043,1739743875551,-1116.66,0.00012027,2]
[353304044,1739743875561,-500.0,0.00012027,2]
[353304045,1739743875570,-500.0,0.00012027,2]
[353304046,1739743875581,-500.0,0.00012027,2]
[353304047,1739743875591,-628.06,0.00012027,2]
[353304048,1739743875601,-200.0,0.00012035,2]
[353304049,1739743875613,-2447.18,0.00012081,2]
[353304050,1739743875623,-10486.92587849,0.00012081,2]
[353304051,1739743875633,-3109.81673496,0.0001209,2]
[353304052,1739743875643,-197.36,0.00012108,2]
[353304053,1739743875653,-500.0,0.00012108,2]
[353304054,1739743875663,-430.0,0.00012108,2]
[353304055,1739743875672,-500.0,0.00012108,2]
[353304056,1739743875682,-500.0,0.00012108,2]
[353304057,1739743875692,-500.0,0.00012108,2]
[353304058,1739743875702,-500.0,0.00012108,2]
[353304059,1739743875713,-500.0,0.00012108,2]
[353304060,1739743875722,-500.0,0.00012108,2]
[353304061,1739743875731,-500.0,0.00012108,2]
[353304062,1739743875746,-519.55,0.00012108,2]
[353304063,1739743875756,-501.18,0.00012108,2]
[353304064,1739743875765,-545.36,0.00012108,2]
[353304065,1739743875775,-537.82,0.00012108,2]
[353304066,1739743875789,-500.0,0.00012108,2]
[353304067,1739743875798,-428.619564,0.00012108,2]
[353304068,1739743875808,-500.0,0.00012108,2]
[353304069,1739743875818,-500.0,0.00012108,2]
[353304070,1739743875828,-605.506852,0.00012108,2]
[353304071,1739743875838,-500.0,0.00012108,2]
[353304072,1739743875847,-885.61,0.00012108,2]
[353304073,1739743875858,-611.27,0.00012108,2]
[353304074,1739743875868,-551.58,0.00012108,2]
[353304075,1739743875878,-660.26,0.00012108,2]
[353304076,1739743875888,-593.26,0.00012108,2]
[353304077,1739743875898,-457.34031676,0.00012108,2]
[353304078,1739743875908,-553.94,0.00012108,2]
[353304079,1739743875918,-565.94,0.00012108,2]
[353304080,1739743875927,-500.0,0.00012108,2]
[353304081,1739743875938,-673.88,0.00012108,2]
[353304082,1739743875948,-776.79,0.00012108,2]
[353304083,1739743875958,-500.0,0.00012108,2]
[353304084,1739743875968,-500.0,0.00012108,2]
[353304085,1739743875978,-265.12,0.00012108,2]
[353304086,1739743875987,-603.97,0.00012108,2]
[353304087,1739743875996,-662.07,0.00012108,2]
[353304088,1739743876005,-500.0,0.00012108,2]
[353304089,1739743876015,-500.0,0.00012108,2]
[353304090,1739743876025,-584.92,0.00012108,2]
[353304091,1739743876036,-500.0,0.00012108,2]
[353304092,1739743876046,-500.0,0.00012108,2]
[353304093,1739743876056,-500.0,0.00012108,2]
[353304094,1739743876065,-2109.33,0.00012108,2]
[353304095,1739743876074,-796.43,0.00012108,2]
[353304096,1739743876085,-500.0,0.00012108,2]
[353304097,1739743876095,-1070.81,0.00012108,2]
[353304098,1739743876105,-676.0,0.00012108,2]
[353304099,1739743876115,-1331.97,0.00012108,2]
[353304100,1739743876125,-955.73,0.00012108,2]
[353304101,1739743876134,-500.0,0.00012108,2]
[353304102,1739743876145,-1388.19,0.00012108,2]
[353304103,1739743876155,-3526.87,0.00012108,2]
[353304104,1739743876164,-793.3,0.00012108,2]
[353304105,1739743876173,-839.11,0.00012108,2]
[353304106,1739743876183,-632.97,0.00012108,2]
[353304107,1739743876192,-928.41,0.00012108,2]
[353304108,1739743876202,-947.29,0.00012108,2]
[353304109,1739743876211,-604.69,0.00012108,2]
[353304110,1739743876220,-1004.66,0.00012108,2]
[353304111,1739743876229,-930.09,0.00012108,2]
[353304112,1739743876240,-1090.64,0.00012108,2]
[353304113,1739743876249,-506.83,0.00012108,2]
[353304114,1739743876259,-552.02,0.00012108,2]
[353304115,1739743876269,-3080.91,0.00012108,2]
[353304116,1739743876279,-557.45,0.00012108,2]
[353304117,1739743876289,-836.96,0.00012108,2]
[353304118,1739743876298,-609.6,0.00012108,2]
[353304119,1739743876308,-611.52,0.00012108,2]
[353304120,1739743876319,-788.37,0.00012108,2]
[353304121,1739743876328,-500.0,0.00012108,2]
[353304122,1739743876339,-535.91,0.00012108,2]
[353304123,1739743876349,-1029.76,0.00012108,2]
[353304124,1739743876359,-757.55,0.00012108,2]
[353304125,1739743876368,-1207.77,0.00012108,2]
[353304126,1739743876377,-993.67,0.00012108,2]
[353304127,1739743876387,-413.72,0.00012108,2]
[353304128,1739743876397,-883.43,0.00012108,2]
[353304129,1739743876407,-1193.44,0.00012108,2]
[353304130,1739743876417,-1120.23,0.00012108,2]
[353304131,1739743876428,-1029.53,0.00012108,2]
[353304132,1739743876439,-500.0,0.00012108,2]
[353304133,1739743876449,-745.24,0.00012108,2]
[353304134,1739743876459,-2299.91,0.00012108,2]
[353304135,1739743876469,-500.0,0.00012108,2]
[353304136,1739743876478,-1170.51,0.00012108,2]
[353304137,1739743876488,-500.0,0.00012108,2]
[353304138,1739743876498,-500.0,0.00012108,2]
[353304139,1739743876508,-1124.91,0.00012108,2]
[353304140,1739743876517,-500.0,0.00012108,2]
[353304141,1739743876528,-500.0,0.00012108,2]
[353304142,1739743876543,-632.96,0.00012108,2]
[353304143,1739743876554,-1572.85,0.00012108,2]
[353304144,1739743876564,-1256.66,0.00012108,2]
[353304145,1739743876574,-500.0,0.00012108,2]
[353304146,1739743876587,-500.0,0.00012108,2]
[353304147,1739743876597,-500.0,0.00012108,2]
[353304148,1739743876606,-526.13,0.00012108,2]
[353304149,1739743876617,-1051.04,0.00012108,2]
[353304150,1739743876628,-916.19,0.00012108,2]
[353304151,1739743876638,-1373.28,0.00012108,2]
[353304152,1739743876648,-670.74,0.00012108,2]
[353304153,1739743876658,-3030.67,0.00012108,2]
[353304154,1739743876668,-558.69,0.00012108,2]
[353304155,1739743876678,-1287.49,0.00012108,2]
[353304156,1739743876688,-2285.4,0.00012108,2]
[353304157,1739743876699,-962.38,0.00012108,2]
[353304158,1739743876708,-919.68,0.00012108,2]
[353304159,1739743876718,-500.0,0.00012108,2]
[353304160,1739743876728,-1272.04,0.00012108,2]
[353304161,1739743876738,-1620.04,0.00012108,2]
[353304162,1739743876749,-626.14,0.00012108,2]
[353304163,1739743876759,-832.87,0.00012108,2]
[353304164,1739743876769,-500.0,0.00012109,2]
[353304165,1739743876779,-500.0,0.00012109,2]
[353304166,1739743876789,-500.0,0.00012109,2]
[353304167,1739743876799,-714.06,0.00012109,2]
[353304168,1739743876809,-500.0,0.00012109,2]
[353304169,1739743876819,-500.0,0.00012109,2]
[353304170,1739743876828,-500.0,0.00012109,2]
[353304171,1739743876838,-728.13,0.00012109,2]
[353304172,1739743876848,-583.4,0.00012109,2]
[353304173,1739743876858,-500.0,0.00012109,2]
[353304174,1739743876868,-500.0,0.00012109,2]
[353304175,1739743876878,-500.0,0.00012109,2]
[353304176,1739743876888,-500.0,0.00012109,2]
[353304177,1739743876900,-500.0,0.00012109,2]
[353304178,1739743876910,-500.0,0.00012109,2]
[353304179,1739743876920,-500.0,0.00012109,2]
[353304180,1739743876930,-569.07,0.00012109,2]
[353304181,1739743876940,-639.31,0.00012109,2]
[353304182,1739743876950,-500.0,0.00012109,2]
[353304183,1739743876959,-500.0,0.00012109,2]
[353304184,1739743876970,-500.0,0.00012109,2]
[353304185,1739743876980,-500.0,0.00012109,2]
[353304186,1739743876989,-746.52,0.00012109,2]
[353304187,1739743876999,-620.87,0.00012109,2]
[353304188,1739743877009,-527.75,0.00012109,2]
[353304189,1739743877018,-703.13,0.00012109,2]
[353304190,1739743877027,-758.03,0.00012109,2]
[353304191,1739743877037,-500.0,0.00012109,2]
[353304192,1739743877047,-500.0,0.00012109,2]
[353304193,1739743877056,-340.81692593,0.00012109,2]
[353304194,1739743877264,-159.18307407,0.00012109,2]
[353304195,1739743877275,-98.43606085,0.00012109,2]
[353304196,1739743877314,-425.41393915,0.00012109,2]
[353304197,1739743877323,-310.66,0.00012109,2]
[353304198,1739743877333,-500.0,0.00012109,2]
[353304199,1739743877343,-536.09,0.00012109,2]
[353304200,1739743877353,-500.0,0.00012109,2]
[353304201,1739743877363,-640.13,0.00012109,2]
[353304202,1739743877373,-828.92,0.00012109,2]
[353304203,1739743877383,-766.68099115,0.00012109,2]
[353304206,1739744019536,184.62,0.00010137,2]
[353304207,1739744230976,167.34,0.0001033,2]
[353304208,1739744274530,250.0,0.00010305,2]
[353304209,1739744280757,1263.0,0.0002,120]
[353304211,1739744311949,499.25,8.391e-05,2]
[353304212,1739744367078,610.12,0.00010351,2]
[353304213,1739744516515,951.15,0.00010328,2]
[353304214,1739744556262,1000.0,0.00010249,2]
[353304215,1739744671814,469.82,0.00010257,2]
[353304216,1739744696393,222.4045,8.699e-05,2]
[353304217,1739744701085,197.11,0.00010257,2]
[353304218,1739744726575,345.04,0.00010268,2]
[353304222,1739744809986,436.4077,8.699e-05,2]
[353304223,1739744829411,265.3343,8.836e-05,2]
[353304260,1739744881299,199290.72764434,0.0001,2]
[353304261,1739744886511,1530.68247972,0.000105,2]
[353304265,1739745017994,33209.50983337,0.0001,2]
[353304273,1739745031852,-170.37,0.00010564,2]
[353304274,1739745031862,-385.89670477,0.00010654,2]
[353304275,1739745031896,-113.35329523,0.00010654,2]
[353304276,1739745031906,-162.47736895,0.000107,2]
[353304277,1739745031918,-431.66088781,0.000107,2]
[353304278,1739745031927,-153.59343526,0.0001079,2]
[353304279,1739745031937,-300.0,0.00010798,2]
[353304280,1739745031947,-995.54298037,0.00010799,2]
[353304281,1739745031958,-2244.26314497,0.00010799,2]
[353304282,1739745032120,-1917.29626969,0.00010799,2]
[353304283,1739745032133,-130.0081599,0.00010799,2]
[353304284,1739745032143,-500.0,0.00010799,2]
[353304285,1739745032153,-511.09128184,0.00010799,2]
[353304286,1739745032163,-150.0,0.00010799,2]
[353304287,1739745032172,-786551.03421446,0.000108,2]
[353304302,1739745037644,-966.00000034,0.000108,2]
[353304303,1739745037656,-1183.499996,0.000108,2]
[353304304,1739745037667,-324.060861,0.000108,2]
[353304305,1739745037772,-34024.86813457,0.000108,2]
[353304306,1739745037783,-1028.34929765,0.000108,2]
[353304307,1739745037795,-21266.73480134,0.000108,2]
[353304308,1739745037900,-350.12049716,0.000108,2]
[353304309,1739745037912,-302.5407008,0.000108,2]
[353304330,1739745039814,-355.16517183,0.000108,2]
[353304331,1739745039825,-44552.96754278,0.000108,2]
[353304332,1739745039863,-6793.93183197,0.000108,2]
[353304333,1739745039875,-330.78373135,0.000108,2]
[353304334,1739745039885,-48329.75962749,0.000108,2]
[353304335,1739745039996,-367.03000001,0.000108,2]
[353304336,1739745040037,-612.23,0.000108,2]
[353304337,1739745040070,-1011.23707616,0.000108,2]
[353304338,1739745040082,-6523.92831411,0.000108,2]
[353304339,1739745040094,-492.87,0.000108,2]
[353304340,1739745040106,-351.03411824,0.000108,2]
[353304341,1739745040117,-499.15973512,0.000108,2]
[353304342,1739745040141,-6006.66,0.000108,2]
[353304343,1739745040152,-250.86035661,0.000108,2]
[353304344,1739745040165,-122150.82215825,0.000108,2]
[353304345,1739745040176,-323.35163956,0.000108,2]
[353304358,1739745042948,-4153.52943584,0.000108,2]
[353304359,1739745042960,-817.97002,0.000108,2]
[353304360,1739745042971,-2751.76054416,0.000108,2]
[353304361,1739745042983,-483.9004615,0.000108,2]
[353304362,1739745042993,-612.23,0.000108,2]
[353304372,1739745045703,-348.95445286,0.000108,2]
[353304373,1739745045715,-5062.64641841,0.000108,2]
[353304374,1739745045727,-1200.0,0.000108,2]
[353304375,1739745045738,-2385.91333527,0.000108,2]
[353304376,1739745045750,-4091.24456286,0.000108,2]
[353304377,1739745045761,-313.06330969,0.000108,2]
[353304378,1739745045772,-792.6859962,0.000108,2]
[353304379,1739745045783,-500.0,0.000108,2]
[353304380,1739745045794,-501000.46255451,0.000108,2]
[353304381,1739745045839,-5132.2190332,0.000108,2]
[353304382,1739745045851,-2112.7,0.000108,2]
[353304383,1739745045862,-777.741585,0.000108,2]
[353304384,1739745045873,-3759.5482,0.000108,2]
[353304385,1739745045885,-452.73471512,0.000108,2]
[353304386,1739745045896,-152897.85133328,0.000108,2]
[353304388,1739745161312,501.9258,8.836e-05,2]
[353304422,1739745416757,550.0,0.0001,2]
[353304423,1739745420730,449.32,8.334e-05,2]
[353304424,1739745776874,1089.96,0.00020105,120]
[353304425,1739745821286,224.73,0.00010285,2]
[353304426,1739745904846,150.0,0.00010282,2]
[353304457,1739745944160,1000.0,0.00010274,2]
[353304470,1739745959623,1731.58,0.00010301,2]
[353304471,1739746003718,382.92,0.00010335,2]
[353304483,1739746191326,484.88,0.00010137,2]
[353304486,1739746232009,-171.471,0.00010584,2]
[353304487,1739746232019,-1726.593,0.00010584,2]
[353304488,1739746232028,-449.32,0.00010598,2]
[353304489,1739746232037,-1469.29895,0.0001069,2]
[353304490,1739746232046,-3286.77088037,0.000107,2]
[353304491,1739746232055,-430.56172161,0.000107,2]
[353304492,1739746232063,-604.42371924,0.00010736,2]
[353304493,1739746232073,-500.0,0.00010799,2]
[353304494,1739746232082,-529.16447249,0.00010799,2]
[353304495,1739746232090,-100.45739652,0.000108,2]
[353304496,1739746232129,-718879.88365754,0.000108,2]
[353304497,1739746232140,-7893.45161813,0.000108,2]
[353304498,1739746232151,-14992.54,0.000108,2]
[353304499,1739746232362,-3059.23005502,0.000108,2]
[353304503,1739746237810,-489.04999834,0.000108,2]
[353304504,1739746237821,-724.000035,0.000108,2]
[353304505,1739746237832,-44343.09539382,0.000108,2]
[353304506,1739746237843,-8390.41828939,0.000108,2]
[353304507,1739746237853,-316.2698799,0.000108,2]
[353304508,1739746237865,-95440.99433652,0.000108,2]
[353304509,1739746237876,-50200.0,0.000108,2]
[353304510,1739746237887,-860.27959036,0.000108,2]
[353304511,1739746237898,-8768.97521127,0.000108,2]
[353304512,1739746237909,-38835.89038802,0.000108,2]
[353304513,1739746237920,-1845.8539949,0.000108,2]
[353304514,1739746238155,-19429.28010987,0.000108,2]
[353304515,1739746238183,-692.74999987,0.000108,2]
[353304516,1739746238194,-1509.34,0.000108,2]
[353304517,1739746238206,-1227.21394694,0.000108,2]
[353304518,1739746238217,-6057.25000013,0.000108,2]
[353304519,1739746238228,-11913.58123909,0.000108,2]
[353304520,1739746238239,-941.57868834,0.000108,2]
[353304521,1739746238251,-2893.74210755,0.000108,2]
[353304522,1739746238262,-1533.348258,0.000108,2]
[353304523,1739746238273,-567.92682084,0.000108,2]
[353304524,1739746238284,-48864.93224471,0.000108,2]
[353304525,1739746238303,-341.24596483,0.000108,2]
[353304526,1739746238315,-14622.62233649,0.000108,2]
[353304532,1739746238380,-592.14361496,0.000108,2]
[353304534,1739746238391,-4826.65,0.000108,2]
[353304560,1739746240010,-36035.68803928,0.000108,2]
[353304561,1739746240020,-336.84534133,0.000108,2]
[353304562,1739746240033,-166.76955616,0.000109,2]
[353304563,1739746240045,-153.59343526,0.00010948,2]
[353304564,1739746240055,-500.0,0.00010958,2]
[353304565,1739746240066,-498.63,0.00010958,2]
[353304566,1739746240076,-190.16,0.00010958,2]
[353304567,1739746240085,-500.0,0.00010958,7]
[353304568,1739746240094,-500.0,0.00010958,2]
[353304569,1739746240104,-500.0,0.00010958,2]
[353304570,1739746240114,-500.0,0.00010958,2]
[353304571,1739746240124,-500.0,0.00010958,2]
[353304572,1739746240133,-500.0,0.00010958,2]
[353304573,1739746240143,-542.29,0.00010958,2]
[353304574,1739746240153,-500.0,0.00010958,2]
[353304575,1739746240162,-500.0,0.00010958,2]
[353304576,1739746240171,-602.46,0.00010958,2]
[353304577,1739746240181,-500.0,0.00010958,2]
[353304578,1739746240190,-500.0,0.00010958,2]
[353304579,1739746240199,-500.0,0.00010958,2]
[353304580,1739746240209,-500.0,0.00010958,2]
[353304581,1739746240220,-500.0,0.00010958,2]
[353304582,1739746240230,-500.0,0.00010958,2]
[353304583,1739746240239,-433.49,0.00010958,2]
[353304584,1739746240248,-500.0,0.00010958,2]
[353304585,1739746240257,-500.0,0.00010958,2]
[353304586,1739746240266,-500.0,0.00010958,2]
[353304587,1739746240275,-500.0,0.00010958,2]
[353304588,1739746240286,-500.0,0.00010958,2]
[353304589,1739746240295,-500.0,0.00010958,2]
[353304590,1739746240304,-500.0,0.00010958,2]
[353304591,1739746240313,-500.0,0.00010958,2]
[353304592,1739746240322,-500.0,0.00010958,2]
[353304593,1739746240331,-500.0,0.00010958,2]
[353304594,1739746240340,-500.0,0.00010958,2]
[353304595,1739746240349,-500.0,0.00010958,2]
[353304596,1739746240359,-500.0,0.00010958,2]
[353304597,1739746240368,-500.0,0.00010958,2]
[353304598,1739746240377,-500.0,0.00010958,2]
[353304604,1739746240597,-500.0,0.00010958,2]
[353304606,1739746240607,-500.0,0.00010958,2]
[353304608,1739746240616,-500.0,0.00010958,2]
[353304610,1739746240625,-500.0,0.00010958,2]
[353304612,1739746240634,-500.0,0.00010958,2]
[353304614,1739746240643,-500.0,0.00010958,2]
[353304615,1739746240652,-500.0,0.00010958,2]
[353304618,1739746240662,-500.0,0.00010958,2]
[353304620,1739746240671,-500.0,0.00010958,2]
[353304622,1739746240679,-500.0,0.00010958,2]
[353304623,1739746240688,-378.1,0.00010958,2]
[353304626,1739746240698,-552.91,0.00010958,2]
[353304628,1739746240707,-500.0,0.00010958,2]
[353304630,1739746240716,-500.0,0.00010958,2]
[353304631,1739746240725,-500.0,0.00010958,2]
[353304633,1739746240734,-500.0,0.00010958,2]
[353304635,1739746240744,-500.0,0.00010958,2]
[353304637,1739746240753,-500.0,0.00010958,2]
[353304639,1739746240762,-500.0,0.00010958,2]
[353304641,1739746240770,-500.0,0.00010958,2]
[353304643,1739746240779,-500.0,0.00010958,2]
[353304645,1739746240788,-500.0,0.00010958,2]
[353304647,1739746240797,-500.0,0.00010958,2]
[353304649,1739746240806,-500.0,0.00010958,2]
[353304651,1739746240815,-500.0,0.00010958,2]
[353304653,1739746240823,-500.0,0.00010958,2]
[353304655,1739746240832,-500.0,0.00010958,2]
[353304657,1739746240840,-500.0,0.00010958,2]
[353304659,1739746240849,-500.0,0.00010958,2]
[353304661,1739746240858,-505.67,0.00010958,2]
[353304663,1739746240867,-500.0,0.00010958,2]
[353304665,1739746240876,-500.0,0.00010958,2]
[353304666,1739746240885,-500.0,0.00010958,2]
[353304668,1739746240894,-500.0,0.00010958,2]
[353304670,1739746240903,-554.98,0.00010958,2]
[353304672,1739746240914,-500.0,0.00010958,2]
[353304674,1739746240932,-500.0,0.00010958,2]
[353304676,1739746240941,-500.0,0.00010958,2]
[353304679,1739746240950,-500.0,0.00010958,2]
[353304681,1739746240959,-500.0,0.00010958,2]
[353304682,1739746240968,-1469.53,0.00010958,2]
[353304684,1739746240977,-500.0,0.00010958,2]
[353304686,1739746240986,-500.0,0.00010958,2]
[353304688,1739746240995,-252.129156,0.00010958,2]
[353304690,1739746241006,-500.0,0.00010958,2]
[353304692,1739746241015,-500.0,0.00010958,2]
[353304694,1739746241024,-500.0,0.00010958,2]
[353304696,1739746241033,-500.0,0.00010958,2]
[353304698,1739746241042,-356.180502,0.00010958,2]
[353304700,1739746241051,-500.0,0.00010958,2]
[353304702,1739746241060,-500.0,0.00010958,2]
[353304704,1739746241069,-500.0,0.00010958,2]
[353304706,1739746241078,-500.0,0.00010958,2]
[353304708,1739746241087,-503.24,0.00010958,2]
[353304710,1739746241096,-161.281651,0.00010958,2]
[353304712,1739746241105,-1283.72,0.00010958,2]
[353304714,1739746241115,-500.0,0.00010958,2]
[353304716,1739746241125,-500.0,0.00010958,2]
[353304718,1739746241135,-500.0,0.00010958,2]
[353304720,1739746241144,-500.0,0.00010958,2]
[353304722,1739746241153,-500.0,0.00010958,2]
[353304723,1739746241162,-500.0,0.00010958,2]
[353304726,1739746241171,-500.0,0.00010958,2]
[353304727,1739746241181,-500.0,0.00010958,2]
[353304729,1739746241190,-500.0,0.00010958,2]
[353304731,1739746241201,-500.0,0.00010958,2]
[353304733,1739746241210,-500.0,0.00010958,2]
[353304735,1739746241219,-500.0,0.00010958,2]
[353304737,1739746241229,-500.0,0.00010958,2]
[353304739,1739746241238,-919.15,0.00010958,2]
[353304741,1739746241247,-500.0,0.00010958,2]
[353304743,1739746241256,-1004.57,0.00010958,2]
[353304745,1739746241266,-500.0,0.00010958,2]
[353304747,1739746241275,-500.0,0.00010958,2]
[353304749,1739746241284,-500.0,0.00010958,2]
[353304751,1739746241294,-500.0,0.00010958,2]
[353304753,1739746241304,-500.0,0.00010958,2]
[353304755,1739746241314,-500.0,0.00010958,2]
[353304757,1739746241323,-523.61,0.00010958,2]
[353304759,1739746241333,-500.0,0.00010958,2]
[353304761,1739746241342,-588.51,0.00010958,2]
[353304763,1739746241352,-500.0,0.00010958,2]
[353304765,1739746241361,-500.0,0.00010958,2]
[353304767,1739746241370,-655.36,0.00010958,2]
[353304769,1739746241380,-500.0,0.00010958,2]
[353304771,1739746241389,-336.92357886,0.00010958,2]
[353304773,1739746241399,-500.0,0.00010958,2]
[353304775,1739746241408,-500.0,0.00010958,2]
[353304777,1739746241418,-500.0,0.00010958,2]
[353304779,1739746241427,-572.2,0.00010958,2]
[353304781,1739746241438,-500.0,0.00010958,2]
[353304783,1739746241450,-500.0,0.00010958,2]
[353304785,1739746241459,-574.57,0.00010958,2]
[353304787,1739746241468,-500.0,0.00010958,2]
[353304789,1739746241477,-500.0,0.00010958,2]
[353304791,1739746241488,-1262.77,0.00010958,2]
[353304793,1739746241497,-543.04,0.00010958,2]
[353304795,1739746241507,-454.23,0.00010958,2]
[353304797,1739746241518,-500.0,0.00010958,2]
[353304798,1739746241528,-500.0,0.00010958,2]
[353304799,1739746241537,-680.0,0.00010958,2]
[353304800,1739746241547,-536.45,0.00010958,2]
[353304801,1739746241555,-500.0,0.00010958,2]
[353304802,1739746241564,-500.0,0.00010958,2]
[353304803,1739746241574,-614.85,0.00010958,2]
[353304804,1739746241583,-500.0,0.00010958,2]
[353304805,1739746241593,-500.0,0.00010958,2]
[353304806,1739746241602,-500.0,0.00010958,2]
[353304807,1739746241612,-500.0,0.00010958,2]
[353304808,1739746241621,-500.0,0.00010958,2]
[353304809,1739746241630,-500.0,0.00010958,2]
[353304810,1739746241639,-639.79,0.00010958,2]
[353304811,1739746241649,-500.0,0.00010958,2]
[353304812,1739746241659,-500.0,0.00010958,2]
[353304813,1739746241668,-500.0,0.00010958,2]
[353304814,1739746241677,-500.0,0.00010958,2]
[353304815,1739746241687,-500.0,0.00010958,2]
[353304816,1739746241696,-500.0,0.00010958,2]
[353304817,1739746241706,-824.79,0.00010958,2]
[353304818,1739746241715,-500.0,0.00010958,2]
[353304819,1739746241725,-1325.55,0.00010958,2]
[353304820,1739746241733,-1325.55,0.00010958,2]
[353304821,1739746241743,-1325.55,0.00010958,2]
[353304822,1739746241752,-1325.55,0.00010958,2]
[353304823,1739746241762,-1325.55,0.00010958,2]
[353304824,1739746241772,-500.0,0.00010958,2]
[353304825,1739746241781,-500.0,0.00010958,2]
[353304826,1739746241791,-601.42,0.00010958,2]
[353304827,1739746241800,-952.25,0.00010958,2]
[353304828,1739746241809,-500.0,0.00010958,2]
[353304829,1739746241819,-500.0,0.00010958,2]
[353304830,1739746241827,-530.01,0.00010958,2]
[353304831,1739746241837,-500.0,0.00010958,2]
[353304832,1739746241846,-500.0,0.00010958,2]
[353304833,1739746241856,-500.0,0.00010958,2]
[353304834,1739746241865,-1308.24,0.00010958,2]
[353304835,1739746241874,-500.0,0.00010958,2]
[353304836,1739746241884,-500.0,0.00010958,2]
[353304837,1739746241894,-500.0,0.00010958,2]
[353304838,1739746241903,-675.02,0.00010958,2]
[353304839,1739746241912,-500.0,0.00010958,2]
[353304840,1739746241922,-500.0,0.00010958,2]
[353304841,1739746241931,-500.0,0.00010958,2]
[353304842,1739746241941,-500.0,0.00010958,2]
[353304843,1739746241951,-809.67,0.00010958,2]
[353304844,1739746241960,-595.22,0.00010958,2]
[353304845,1739746241970,-500.0,0.00010958,2]
[353304846,1739746241979,-500.0,0.00010958,2]
[353304847,1739746241988,-503.39,0.00010958,2]
[353304848,1739746241997,-500.0,0.00010958,2]
[353304849,1739746242007,-500.0,0.00010958,2]
[353304850,1739746242016,-500.0,0.00010958,2]
[353304851,1739746242026,-500.0,0.00010958,2]
[353304852,1739746242035,-1000.0,0.00010958,2]
[353304853,1739746242044,-500.0,0.00010958,2]
[353304854,1739746242053,-534.3,0.00010958,2]
[353304855,1739746242063,-500.0,0.00010958,2]
[353304856,1739746242072,-537.51,0.00010958,2]
[353304857,1739746242087,-878.89,0.00010958,2]
[353304858,1739746242096,-500.0,0.00010958,2]
[353304859,1739746242106,-500.0,0.00010958,2]
[353304860,1739746242115,-500.0,0.00010958,2]
[353304861,1739746242125,-500.0,0.00010958,2]